bitfinex-derivatives/quotes_BNBF0:USTF0_20241230
["timestamp","ask_amount","ask_price","bid_price","bid_amount"]
[1735579929872,0.26288445,701.59,698.68,1.04181717]
[1735579930072,0.26288445,701.59,690.63,8.31999913]
[1735579930270,0.26288445,701.59,696.57,2.89255985]
[1735579930467,0.26288445,701.58,696.58,1.37472289]
[1735579930673,0.26288445,701.57,696.58,5.27290501]
[1735579930870,0.26288445,701.56,696.59,2.89255985]
[1735579931169,0.26288445,701.56,698.69,1.04018451]
[1735579931369,0.26288445,701.55,698.69,1.04018451]
[1735579931571,0.26288445,701.54,698.69,1.04018451]
[1735579931974,0.26288445,701.53,698.86,1.04018451]
[1735579932375,0.26286702,701.52,698.86,1.04018451]
[1735579932773,0.26286702,701.51,698.86,1.04018451]
[1735579932975,0.26286702,701.5,698.8,1.04018451]
[1735579933172,0.26286702,701.49,698.8,1.04018451]
[1735579933479,0.26286702,701.48,698.8,1.04018451]
[1735579933679,0.26286702,701.59,698.8,1.04018451]
[1735579933978,0.26286702,701.58,698.66,1.04018451]
[1735579934178,0.26286702,701.57,698.66,1.04018451]
[1735579934475,0.26286702,701.56,698.66,1.04018451]
[1735579934781,0.26286702,701.55,698.66,1.04018451]
[1735579934975,0.63219749,701.54,698.71,1.04018451]
[1735579935179,0.63219749,701.53,699.0,1.04018451]
[1735579935577,0.26277441,701.53,699.0,1.04018451]
[1735579935780,0.26277441,701.52,699.0,1.04018451]
[1735579936183,0.26277441,701.51,699.0,1.04018451]
[1735579936383,0.26277441,701.51,698.18,2.12371005]
[1735579936384,0.26277441,701.59,698.89,1.04018451]
[1735579936582,0.26277441,701.58,698.89,1.04018451]
[1735579936783,0.26277441,701.57,698.89,1.04018451]
[1735579936976,0.26277441,701.56,698.89,1.04018451]
[1735579937177,0.26277441,701.55,698.89,1.04018451]
[1735579937381,0.26277441,701.54,698.89,1.04018451]
[1735579937584,0.26272009,701.54,699.05,1.04018451]
[1735579937878,1.49152978,701.6,699.05,1.04018451]
[1735579937879,0.26272009,701.53,699.05,1.04018451]
[1735579938084,1.49152978,701.6,699.05,1.04018451]
[1735579938281,0.26272611,701.59,699.05,1.04018451]
[1735579938483,0.26272611,701.58,699.05,1.04018451]
[1735579938686,0.26272611,701.57,699.07,1.04018451]
[1735579938983,0.26272611,701.56,699.07,1.04018451]
[1735579939184,0.26272611,701.55,699.09,0.28608619]
[1735579939484,0.26272611,701.54,699.09,0.28608619]
[1735579939678,0.26272611,701.53,699.09,0.28608619]
[1735579940084,0.2850424,701.65,699.09,0.28608619]
[1735579940085,0.26273794,701.52,699.09,0.28608619]
[1735579940278,1.75370857,701.52,699.09,0.28608619]
[1735579940481,0.26273794,701.51,699.09,0.28608619]
[1735579940786,0.28514806,701.39,699.09,0.28608619]
[1735579941188,0.26273733,701.38,699.09,0.28608619]
[1735579942881,0.28519685,701.27,699.09,0.28608619]
[1735579943085,0.26273733,701.26,699.09,0.28608619]
[1735579943982,0.28520905,701.24,699.09,0.28608619]
[1735579944187,0.26273733,701.23,699.09,0.28608619]
[1735579944488,0.26273733,701.22,699.09,0.28608619]
[1735579944690,0.26273733,701.21,699.14,1.04018451]
[1735579944988,0.26273733,701.2,699.14,1.04018451]
[1735579945288,0.26273733,701.19,699.14,1.04018451]
[1735579945590,0.26273733,701.18,699.14,1.04018451]
[1735579945790,0.26273733,701.17,699.09,0.28608619]
[1735579945990,0.26273733,701.16,699.09,0.28608619]
[1735579946283,0.26273733,701.15,699.09,0.28608619]
[1735579946488,0.26273733,701.14,699.09,0.28608619]
[1735579946684,0.26273733,701.13,699.09,0.28608619]
[1735579946984,0.26273733,701.12,699.14,1.04018451]
[1735579947190,0.26273733,701.11,699.14,1.04018451]
[1735579947390,0.26273733,701.1,699.15,0.28606164]
[1735579947594,0.26273733,701.09,699.15,0.28606164]
[1735579947789,0.2627926,701.08,699.15,0.28606164]
[1735579947985,0.2627926,701.07,699.15,0.28606164]
[1735579948189,0.2627926,701.06,699.15,0.28606164]
[1735579948387,0.28520905,701.24,699.15,0.28606164]
[1735579948591,0.26281507,701.23,699.15,0.28606164]
[1735579948794,0.28522126,701.21,699.15,0.28606164]
[1735579948987,0.26281507,701.2,699.15,0.28606164]
[1735579949292,0.28522126,701.21,699.15,0.28606164]
[1735579949293,0.26281507,701.19,699.15,0.28606164]
[1735579949588,0.28523753,701.17,699.15,0.28606164]
[1735579949793,0.26281507,701.16,699.15,0.28606164]
[1735579949990,0.28524973,701.14,699.22,1.04018451]
[1735579950291,0.26281507,701.13,699.23,0.28602891]
[1735579950592,0.26280425,701.12,699.23,0.28602891]
[1735579950784,0.26280425,701.11,699.23,0.28602891]
[1735579950991,0.54807026,701.1,699.23,0.28602891]
[1735579951192,0.28527414,701.08,699.23,0.28602891]
[1735579951393,0.26280425,701.07,699.27,1.04018451]
[1735579951596,0.26280425,701.06,699.27,1.04018451]
[1735579951793,0.26280425,701.05,699.27,1.04018451]
[1735579951989,0.26280425,701.04,699.27,1.04018451]
[1735579952192,0.26280425,701.03,699.27,1.04018451]
[1735579952395,0.26280425,701.02,699.27,1.04018451]
[1735579952594,0.26280425,701.01,699.35,1.04018451]
[1735579952793,0.26280425,701.0,699.35,1.04018451]
[1735579952990,0.28527414,701.08,699.35,1.04018451]
[1735579953293,0.26278332,701.07,699.35,1.04018451]
[1735579953794,0.26278332,701.07,699.4,1.04018451]
[1735579954594,0.28527414,701.08,699.4,1.04018451]
[1735579954595,0.26278332,701.06,699.4,1.04018451]
[1735579954789,0.26278332,701.05,699.4,1.04018451]
[1735579955095,0.26278332,701.04,699.4,1.04018451]
[1735579955389,0.26278332,701.03,699.62,1.04018451]
[1735579955691,0.26272599,701.02,699.62,1.04018451]
[1735579955902,0.26272599,701.01,699.62,1.04018451]
[1735579956193,0.26271835,701.0,699.62,1.04018451]
[1735579956396,0.26271835,701.07,699.72,1.04018451]
[1735579957794,0.26271835,701.07,699.77,1.04018451]
[1735579958194,0.2627015,701.06,699.77,1.04018451]
[1735579958394,0.2627015,701.05,699.77,1.04018451]
[1735579958695,0.2627015,701.04,699.77,1.04018451]
[1735579958894,0.2627015,701.03,699.77,1.04018451]
[1735579959088,0.28527414,701.08,699.83,1.04018451]
[1735579959089,0.2627015,701.02,699.83,1.04018451]
[1735579959396,0.26269585,701.01,699.83,1.04018451]
[1735579959593,0.28527414,701.08,699.83,1.04018451]
[1735579959794,0.26269124,701.07,699.83,1.04018451]
[1735579959996,0.26269124,701.07,699.89,1.04018451]
[1735579960589,0.28527414,701.08,699.89,1.04018451]
[1735579960791,0.262698,701.07,699.89,1.04018451]
[1735579961895,0.28528228,701.06,699.89,1.04018451]
[1735579962292,0.28528228,701.06,699.87,1.04018451]
[1735579962492,1.75338638,701.05,699.87,1.04018451]
[1735579962697,0.26269783,701.04,699.87,1.04018451]
[1735579962997,1.49068855,701.05,699.87,1.04018451]
[1735579963598,1.49068855,701.05,699.86,1.04018451]
[1735579964697,1.49068855,701.05,700.02,1.04018451]
[1735579965897,1.49068855,701.05,699.27,2.12371005]
[1735579965898,1.49068855,701.05,700.06,1.04018451]
[1735579966899,1.49068855,701.05,700.08,1.04018451]
[1735579967694,0.28528228,701.06,700.08,1.04018451]
[1735579967895,1.05631924,701.88,700.08,1.04018451]
[1735579968195,1.4901832,701.14,700.23,1.04018451]
[1735579968493,1.05631924,701.92,700.23,1.04018451]
[1735579968699,1.48979512,701.87,700.23,1.04018451]
[1735579968893,0.26257565,701.86,700.23,1.04018451]
[1735579969193,0.26257565,701.85,700.2,1.04018451]
[1735579969398,0.54754088,701.84,700.2,1.04018451]
[1735579969794,0.26257565,701.83,700.2,1.04018451]
[1735579970395,0.26257565,701.83,700.13,1.04018451]
[1735579970795,0.26255334,701.82,700.13,1.04018451]
[1735579970991,0.26255334,701.83,700.13,1.04018451]
[1735579971192,0.26255334,701.82,700.13,1.04018451]
[1735579971396,0.26253479,701.81,700.13,1.04018451]
[1735579971690,0.26253479,701.83,700.14,1.04018451]
[1735579971899,0.26253479,701.82,700.14,1.04018451]
[1735579972198,0.26253479,701.83,700.14,1.04018451]
[1735579972397,0.26253479,701.83,700.11,1.04018451]
[1735579972592,0.26253479,701.82,700.11,1.04018451]
[1735579972795,0.26253479,701.81,700.11,1.04018451]
[1735579973195,0.26253479,701.83,700.11,1.04018451]
[1735579973401,0.26253618,701.82,700.11,1.04018451]
[1735579973598,0.26253618,701.83,700.11,1.04018451]
[1735579973799,0.26253618,701.82,699.99,1.04018451]
[1735579974102,0.26253618,701.83,699.99,1.04018451]
[1735579974297,0.26253618,701.82,699.99,1.04018451]
[1735579974498,0.26253618,701.81,699.99,1.04018451]
[1735579975003,0.26253618,701.8,699.92,1.04018451]
[1735579975394,0.26253618,701.79,699.92,1.04018451]
[1735579975700,0.26253618,701.78,699.92,1.04018451]
[1735579975900,0.28496523,701.84,699.92,1.04018451]
[1735579976097,0.28496523,701.84,700.05,1.04018451]
[1735579976098,0.26258146,701.77,700.05,1.04018451]
[1735579976400,0.26258146,701.83,700.05,1.04018451]
[1735579976601,0.26258146,701.76,700.05,1.04018451]
[1735579976799,0.26258146,701.82,700.05,1.04018451]
[1735579977000,0.26258146,701.75,700.05,1.04018451]
[1735579977199,0.26258146,701.75,699.83,1.04018451]
[1735579977200,0.26258146,701.74,700.01,1.04018451]
[1735579977401,0.26258146,701.73,700.01,1.04018451]
[1735579977602,0.26258146,701.72,700.01,1.04018451]
[1735579977801,0.26258146,701.71,700.01,1.04018451]
[1735579977993,0.26258146,701.7,700.01,1.04018451]
[1735579978198,0.26258146,701.69,700.01,1.04018451]
[1735579978400,0.26262101,701.68,699.86,1.04018451]
[1735579978594,0.26262101,701.67,699.86,1.04018451]
[1735579978796,1.75276699,701.67,699.86,1.04018451]
[1735579979101,0.26263187,701.66,699.86,1.04018451]
[1735579979499,0.26263187,701.65,699.86,1.04018451]
[1735579979899,0.26263187,701.64,699.85,1.04018451]
[1735579980299,0.26263187,701.63,699.85,1.04018451]
[1735579980501,0.26263187,701.62,699.85,1.04018451]
[1735579980700,0.26263187,701.61,699.85,1.04018451]
[1735579980897,0.26263187,701.6,699.9,1.04018451]
[1735579981101,0.26263187,701.59,699.9,1.04018451]
[1735579981303,0.26263187,701.58,699.9,1.04018451]
[1735579981602,0.26263187,701.57,699.9,1.04018451]
[1735579981803,0.26263187,701.56,699.9,1.04018451]
[1735579982104,0.26263187,701.55,699.7,1.04018451]
[1735579982303,0.26263187,701.66,699.7,1.04018451]
[1735579982504,0.26263187,701.54,699.7,1.04018451]
[1735579982697,0.26262096,701.53,699.7,1.04018451]
[1735579983098,0.26262096,701.52,699.81,1.04018451]
[1735579983302,0.26263602,701.52,699.81,1.04018451]
[1735579983603,0.26263602,701.66,699.81,1.04018451]
[1735579983797,0.26263602,701.51,699.81,1.04018451]
[1735579983998,0.26263602,701.5,699.81,1.04018451]
[1735579984398,0.26263602,701.49,699.78,1.04018451]
[1735579984602,0.26263602,701.48,699.78,1.04018451]
[1735579984807,0.26263602,701.66,699.78,1.04018451]
[1735579984997,0.26263602,701.65,699.78,1.04018451]
[1735579985200,0.26263602,701.66,699.9,1.04018451]
[1735579985498,0.26263602,701.65,699.9,1.04018451]
[1735579985699,0.26263602,701.66,699.9,1.04018451]
[1735579985903,0.26261546,701.65,699.9,1.04018451]
[1735579986103,0.26261546,701.64,699.92,1.04018451]
[1735579986302,1.49014598,701.67,699.92,1.04018451]
[1735579986303,0.26261546,701.66,699.92,1.04018451]
[1735579986504,0.26261546,701.65,699.92,1.04018451]
[1735579986800,0.26261546,701.66,699.92,1.04018451]
[1735579987197,0.26261546,701.64,699.92,1.04018451]
[1735579987603,0.26261546,701.63,699.97,1.04018451]
[1735579987799,0.26261546,701.62,699.97,1.04018451]
[1735579987997,0.26261546,701.61,699.97,1.04018451]
[1735579988200,0.26261546,701.6,699.97,1.04018451]
[1735579988402,0.26261546,701.59,699.97,1.04018451]
[1735579988602,0.26261546,701.58,699.97,1.04018451]
[1735579988802,0.26261546,701.58,700.15,1.04018451]
[1735579989305,1.75272954,701.57,700.15,1.04018451]
[1735579989703,0.26261546,701.56,700.15,1.04018451]
[1735579990106,0.26261546,701.55,700.15,1.04018451]
[1735579990306,1.49011408,701.57,700.15,1.04018451]
[1735579990605,0.26263427,701.54,700.17,1.04018451]
[1735579990806,0.26263427,701.56,700.17,1.04018451]
[1735579990999,0.26263427,701.55,700.17,1.04018451]
[1735579991204,0.26263427,701.54,700.17,1.04018451]
[1735579991506,0.26263427,701.53,700.17,1.04018451]
[1735579991706,1.05631924,701.5,700.02,1.04018451]
[1735579992207,0.26266372,701.49,700.02,1.04018451]
[1735579992407,0.26266372,701.48,700.02,1.04018451]
[1735579992701,0.26266372,701.48,699.44,2.12371005]
[1735579992702,0.26266372,701.47,700.03,1.04018451]
[1735579993007,0.26265974,701.46,700.03,1.04018451]
[1735579993205,0.26265974,701.47,700.03,1.04018451]
[1735579993603,1.05631924,701.48,700.03,1.04018451]
[1735579993804,1.05631924,701.48,700.08,1.04018451]
[1735579993805,0.5253165,701.46,700.08,1.04018451]
[1735579994199,0.26266714,701.46,700.08,1.04018451]
[1735579995007,0.26264936,701.45,700.07,1.04018451]
[1735579995909,0.26262282,701.44,700.07,1.04018451]
[1735579996109,0.26262282,701.44,700.12,1.04018451]
[1735579996412,0.26262282,701.45,700.12,1.04018451]
[1735579996604,0.26266714,701.46,700.12,1.04018451]
[1735579997509,0.26266714,701.46,700.24,1.04018451]
[1735579998910,0.26266714,701.46,700.4,1.04018451]
[1735579999104,0.28496523,701.84,700.4,1.04018451]
[1735579999303,1.48975791,701.45,700.4,1.04018451]
[1735579999608,0.28496523,701.84,700.4,1.04018451]
[1735579999910,0.28496523,701.84,700.37,1.04018451]
[1735579999911,1.48982169,701.44,700.37,1.04018451]
[1735580000108,0.28496523,701.84,700.37,1.04018451]
[1735580000309,0.26251528,701.83,700.37,1.04018451]
[1735580000510,1.48984295,701.43,700.37,1.04018451]
[1735580000710,0.28496523,701.84,700.37,1.04018451]
[1735580000905,0.28496523,701.84,699.71,2.12371005]
[1735580000906,0.26252504,701.83,700.29,1.04018451]
[1735580001107,1.48984827,701.42,700.29,1.04018451]
[1735580001304,0.28496523,701.84,700.29,1.04018451]
[1735580001505,0.26253835,701.83,700.29,1.04018451]
[1735580001809,0.26253835,701.82,700.29,1.04018451]
[1735580002111,0.26253835,701.81,700.25,1.04018451]
[1735580002305,0.26253835,701.8,700.25,1.04018451]
[1735580002511,0.26253835,701.79,700.25,1.04018451]
[1735580002814,0.26253835,701.78,700.36,1.04018451]
[1735580003011,0.26253835,701.77,700.36,1.04018451]
[1735580003211,0.2625283,701.76,700.36,1.04018451]
[1735580003405,0.2625283,701.75,700.36,1.04018451]
[1735580003607,0.2625283,701.74,700.36,1.04018451]
[1735580003808,0.2625283,701.73,700.36,1.04018451]
[1735580004002,0.2625283,701.72,700.36,1.04018451]
[1735580004205,0.2625283,701.71,700.36,1.04018451]
[1735580004409,0.2625283,701.8,700.36,1.04018451]
[1735580004609,0.2625283,701.7,700.36,1.04018451]
[1735580004908,1.48973134,701.81,700.33,1.04018451]
[1735580004909,0.2625283,701.69,700.33,1.04018451]
[1735580005108,0.2625283,701.8,700.33,1.04018451]
[1735580005305,0.2625283,701.79,700.33,1.04018451]
[1735580005607,0.2625283,701.78,700.33,1.04018451]
[1735580005812,0.2625724,701.78,700.32,1.04018451]
[1735580006011,0.2625724,701.77,700.32,1.04018451]
[1735580006206,0.2625724,701.76,700.32,1.04018451]
[1735580006409,0.2625724,701.75,700.32,1.04018451]
[1735580006611,0.2625724,701.74,700.32,1.04018451]
[1735580006911,0.26256364,701.73,700.27,1.04018451]
[1735580007112,0.26256364,701.8,700.27,1.04018451]
[1735580007311,0.26256364,701.79,700.27,1.04018451]
[1735580007513,0.26256364,701.78,700.27,1.04018451]
[1735580007709,0.26256364,701.77,700.27,1.04018451]
[1735580007910,0.26256364,701.76,700.22,1.04018451]
[1735580008106,0.26256364,701.75,700.22,1.04018451]
[1735580008313,0.26255727,701.74,700.22,1.04018451]
[1735580008513,0.26255727,701.73,700.22,1.04018451]
[1735580008813,1.05631924,701.78,700.22,1.04018451]
[1735580008814,0.26255727,701.72,700.22,1.04018451]
[1735580009005,0.2626088,701.72,700.22,1.04018451]
[1735580009314,0.2626088,701.71,700.27,1.04018451]
[1735580009508,0.2626088,701.8,700.27,1.04018451]
[1735580010409,0.28498959,701.78,700.2,1.04018451]
[1735580010609,0.2626088,701.77,700.2,1.04018451]
[1735580010812,0.28498959,701.78,700.2,1.04018451]
[1735580011012,0.28500178,701.75,700.2,1.04018451]
[1735580011313,0.26256512,701.74,700.2,1.04018451]
[1735580011515,0.28501396,701.72,700.22,1.04018451]
[1735580011714,0.26256512,701.71,700.22,1.04018451]
[1735580012517,0.28502615,701.69,700.22,1.04018451]
[1735580012716,0.26256512,701.68,700.04,1.04018451]
[1735580013317,0.28502615,701.69,700.04,1.04018451]
[1735580013617,0.26260159,701.68,700.04,1.04018451]
[1735580014019,0.26260159,701.68,700.02,1.04018451]
[1735580014918,0.26260159,701.68,699.98,1.04018451]
[1735580015925,0.26265078,701.67,699.98,1.04018451]
[1735580016122,0.26265078,701.67,699.24,0.73851503]
[1735580016123,0.26265078,701.67,699.94,1.04018451]
[1735580016315,0.26265078,701.68,699.94,1.04018451]
[1735580016520,0.28502615,701.69,699.94,1.04018451]
[1735580016720,0.26266541,701.68,699.94,1.04018451]
[1735580016920,0.26266541,701.67,699.94,1.04018451]
[1735580017116,0.28502615,701.69,699.88,1.04018451]
[1735580017117,1.05631924,701.59,699.88,1.04018451]
[1735580017321,0.26266541,701.58,699.88,1.04018451]
[1735580017619,0.26266541,701.57,699.88,1.04018451]
[1735580017817,0.26266541,701.56,699.88,1.04018451]
[1735580018025,0.26266541,701.55,699.88,1.04018451]
[1735580018220,0.26266541,701.54,700.09,1.04018451]
[1735580018421,0.26266541,701.57,700.09,1.04018451]
[1735580018621,0.26266541,701.56,700.09,1.04018451]
[1735580018817,0.26266541,701.57,700.09,1.04018451]
[1735580019018,0.26266541,701.56,700.09,1.04018451]
[1735580019216,0.26266541,701.55,700.09,1.04018451]
[1735580019422,0.26266541,701.55,699.55,2.12371005]
[1735580019423,0.26266541,701.54,700.06,1.04018451]
[1735580019622,0.26266541,701.53,700.06,1.04018451]
[1735580019822,0.26266541,701.52,700.06,1.04018451]
[1735580020016,0.26266541,701.64,700.06,1.04018451]
[1735580020219,0.26266541,701.63,700.06,1.04018451]
[1735580020416,1.05631924,701.63,700.02,1.04018451]
[1735580020722,0.26266541,701.62,700.02,1.04018451]
[1735580020921,1.05631924,701.63,700.02,1.04018451]
[1735580021122,0.26261887,701.61,700.02,1.04018451]
[1735580021317,0.28506677,701.59,700.02,1.04018451]
[1735580021518,0.26261887,701.58,700.07,1.04018451]
[1735580022418,0.26261887,701.57,700.07,1.04018451]
[1735580022618,0.28506677,701.59,700.04,1.04018451]
[1735580022619,0.28508303,701.55,700.04,1.04018451]
[1735580022815,0.26261887,701.54,700.04,1.04018451]
[1735580023018,0.28509522,701.52,700.04,1.04018451]
[1735580023221,0.26261887,701.51,700.04,1.04018451]
[1735580023722,0.28510741,701.49,700.04,1.04018451]
[1735580023917,0.26263885,701.48,700.04,1.04018451]
[1735580024118,0.28510741,701.49,700.04,1.04018451]
[1735580024322,0.26262242,701.48,700.04,1.04018451]
[1735580024523,0.26262242,701.48,700.09,1.04018451]
[1735580025521,0.2851196,701.46,700.1,1.04018451]
[1735580025725,0.26262242,701.45,700.1,1.04018451]
[1735580026326,0.2851318,701.43,700.1,1.04018451]
[1735580026520,0.26262892,701.42,700.1,1.04018451]
[1735580026727,0.26262892,701.42,700.04,1.04018451]
[1735580027626,0.28514399,701.4,700.04,1.04018451]
[1735580027828,0.26262892,701.39,700.06,1.04018451]
[1735580028832,0.28515619,701.37,700.07,1.04018451]
[1735580029226,0.26263153,701.36,700.07,1.04018451]
[1735580030330,0.28516839,701.34,699.97,1.04018451]
[1735580030532,0.26263153,701.33,699.97,1.04018451]
[1735580031225,0.28516839,701.34,699.89,1.04018451]
[1735580031429,0.26271575,701.33,699.89,1.04018451]
[1735580032026,0.28516839,701.34,699.89,1.04018451]
[1735580032027,0.26270327,701.32,699.89,1.04018451]
[1735580032226,0.26270327,701.31,699.89,1.04018451]
[1735580032427,0.26270327,701.33,699.89,1.04018451]
[1735580032630,0.26270327,701.32,699.84,1.04018451]
[1735580032825,0.26270327,701.31,699.84,1.04018451]
[1735580033129,0.26270327,701.3,699.84,1.04018451]
[1735580033328,0.26270327,701.29,699.84,1.04018451]
[1735580033833,0.26270327,701.29,699.88,1.04018451]
[1735580034029,0.26267898,701.28,699.88,1.04018451]
[1735580034226,0.26267898,701.29,699.88,1.04018451]
[1735580034425,1.49061406,701.3,699.88,1.04018451]
[1735580034426,0.26267898,701.27,699.88,1.04018451]
[1735580034631,0.26267898,701.26,699.91,1.04018451]
[1735580034930,0.26267898,701.25,699.91,1.04018451]
[1735580035130,0.26267898,701.24,699.91,1.04018451]
[1735580035326,0.26267898,701.23,699.91,1.04018451]
[1735580035530,0.26267898,701.22,699.91,1.04018451]
[1735580035730,0.26267898,701.21,699.91,1.04018451]
[1735580035933,0.26267898,701.29,699.86,1.04018451]
[1735580036131,0.26267898,701.28,699.86,1.04018451]
[1735580036331,0.26267898,701.27,699.86,1.04018451]
[1735580036531,0.26270825,701.26,699.86,1.04018451]
[1735580036727,0.26270825,701.25,699.86,1.04018451]
[1735580037033,0.26270825,701.24,699.82,1.04018451]
[1735580037330,0.26270825,701.23,699.82,1.04018451]
[1735580037531,0.26270825,701.22,699.82,1.04018451]
[1735580037728,0.26270825,701.21,699.82,1.04018451]
[1735580037934,0.26270825,701.2,699.75,1.04018451]
[1735580038130,0.26270825,701.19,699.75,1.04018451]
[1735580038333,0.26270825,701.18,699.75,1.04018451]
[1735580038527,1.49061406,701.3,699.75,1.04018451]
[1735580038528,0.26270825,701.17,699.75,1.04018451]
[1735580038834,0.26270825,701.16,699.75,1.04018451]
[1735580039034,1.49061406,701.3,699.75,1.04018451]
[1735580039336,0.26273557,701.29,699.73,1.04018451]
[1735580039534,0.26273557,701.28,699.73,1.04018451]
[1735580039733,0.26277556,701.27,699.73,1.04018451]
[1735580039935,0.26277556,701.26,699.73,1.04018451]
[1735580040137,0.26277556,701.25,699.73,1.04018451]
[1735580040437,1.49061406,701.3,699.74,1.04018451]
[1735580040438,1.05631924,701.22,699.74,1.04018451]
[1735580040632,0.26277556,701.21,699.74,1.04018451]
[1735580041031,1.05631924,701.22,699.74,1.04018451]
[1735580041234,0.2627495,701.21,699.74,1.04018451]
[1735580041435,1.05631924,701.22,699.74,1.04018451]
[1735580041637,1.49061406,701.3,699.57,1.04018451]
[1735580041835,0.26274583,701.29,699.57,1.04018451]
[1735580042539,0.26274583,701.29,699.58,1.04018451]
[1735580043435,1.49061406,701.3,699.9,1.04018451]
[1735580043638,0.26270434,701.28,699.9,1.04018451]
[1735580043839,0.26270434,701.29,699.9,1.04018451]
[1735580044140,0.26270434,701.27,699.9,1.04018451]
[1735580044343,0.26270434,701.28,699.9,1.04018451]
[1735580044541,0.26270434,701.27,699.9,1.04018451]
[1735580044742,0.26270434,701.26,699.9,1.04018451]
[1735580044942,0.26270434,701.29,699.91,1.04018451]
[1735580045142,0.26270434,701.28,699.91,1.04018451]
[1735580045342,0.26270434,701.29,699.91,1.04018451]
[1735580045643,0.26270434,701.28,699.91,1.04018451]
[1735580045944,0.26270434,701.28,699.3,2.12371005]
[1735580045945,0.26263274,701.27,700.09,1.04018451]
[1735580046242,1.49061406,701.3,700.09,1.04018451]
[1735580046442,0.26263236,701.29,700.09,1.04018451]
[1735580046643,1.49061406,701.3,700.09,1.04018451]
[1735580046843,0.26263178,701.29,700.09,1.04018451]
[1735580047039,0.26263178,701.29,699.52,2.12371005]
[1735580047040,0.26263178,701.29,700.05,1.04018451]
[1735580047937,1.49061406,701.3,700.05,1.04018451]
[1735580048338,1.49061406,701.3,700.11,1.04018451]
[1735580049547,1.49061406,701.3,699.46,2.12371005]
[1735580049548,1.49061406,701.3,700.15,1.04018451]
[1735580050449,1.49061406,701.3,700.21,1.04018451]
[1735580051348,1.49061406,701.3,700.23,1.04018451]
[1735580052545,1.49061406,701.3,700.15,1.04018451]
[1735580053651,1.49061406,701.3,700.2,1.04018451]
[1735580054647,1.49061406,701.3,700.19,1.04018451]
[1735580055048,0.28516839,701.34,700.19,1.04018451]
[1735580055947,0.28516839,701.34,699.4,2.12371005]
[1735580055948,0.28516839,701.34,700.33,1.04018451]
[1735580056852,0.28516839,701.34,700.24,1.04018451]
[1735580058649,0.28516839,701.34,700.22,1.04018451]
[1735580059354,1.489641,701.47,700.22,1.04018451]
[1735580059755,1.489641,701.47,700.18,1.04018451]
[1735580060650,1.489641,701.47,700.32,1.04018451]
[1735580061856,1.489641,701.47,700.24,1.04018451]
[1735580062956,1.489641,701.47,700.0,1.04018451]
[1735580063955,1.489641,701.47,699.96,1.04018451]
[1735580065250,1.489641,701.47,699.87,1.04018451]
[1735580066355,1.489641,701.47,699.91,1.04018451]
[1735580067555,1.489641,701.47,699.89,1.04018451]
[1735580068957,1.489641,701.47,699.93,1.04018451]
[1735580069955,1.489641,701.47,699.94,1.04018451]
[1735580071160,1.489641,701.47,699.25,1.24822142]
[1735580071161,1.489641,701.47,699.92,1.04018451]
[1735580071860,1.489641,701.47,699.21,1.24822142]
[1735580071861,1.489641,701.47,699.97,1.04018451]
[1735580073158,1.489641,701.47,699.95,1.04018451]
[1735580073858,1.489641,701.47,699.93,1.04018451]
[1735580074957,1.489641,701.47,700.02,1.04018451]
[1735580076163,1.489641,701.47,700.13,1.04018451]
[1735580077567,1.489641,701.47,700.22,1.04018451]
[1735580078364,1.489641,701.47,700.35,1.04018451]
[1735580079458,1.489641,701.47,700.1,1.04018451]
[1735580079459,1.489641,701.47,700.46,1.04018451]
[1735580080567,1.489641,701.47,700.49,1.04018451]
[1735580081760,1.489641,701.47,700.52,1.04018451]
[1735580082866,1.489641,701.47,700.57,1.04018451]
[1735580084067,1.489641,701.47,700.66,1.04018451]
[1735580085168,1.489641,701.47,700.68,1.04018451]
[1735580086066,1.77475654,701.47,700.68,1.04018451]
[1735580086260,1.77475654,701.47,700.59,1.04018451]
[1735580087262,1.77475654,701.47,700.55,1.04018451]
[1735580088971,0.63157606,702.24,700.55,1.04018451]
[1735580089166,1.05631924,702.25,700.55,1.04018451]
[1735580090070,1.05631924,703.61,701.65,1.04018451]
[1735580090270,1.4877464,702.64,701.65,1.04018451]
[1735580090471,1.05631924,703.61,701.65,1.04018451]
[1735580090663,1.48701532,702.63,701.65,1.04018451]
[1735580090866,1.05631924,703.61,701.65,1.04018451]
[1735580091067,1.48708946,702.62,701.65,1.04018451]
[1735580091371,0.63050602,703.75,701.47,1.04018451]
[1735580091571,0.26204828,703.74,701.47,1.04018451]
[1735580091773,0.26204828,703.73,701.47,1.04018451]
[1735580092070,0.26203356,703.72,701.47,1.04018451]
[1735580092271,0.26203356,703.71,701.11,1.04018451]
[1735580092470,0.26203356,703.7,701.11,1.04018451]
[1735580092664,0.261997,703.69,701.11,1.04018451]
[1735580093274,0.28426453,703.57,701.11,1.04018451]
[1735580093473,0.261997,703.56,701.1,1.04018451]
[1735580094270,0.261997,703.56,700.81,1.04018451]
[1735580094667,0.26201876,703.55,700.81,1.04018451]
[1735580094868,0.26201876,703.54,700.81,1.04018451]
[1735580095070,0.28432919,703.41,700.83,0.28537591]
[1735580095373,0.26201876,703.4,700.83,0.28537591]
[1735580095574,0.26201876,703.39,700.83,0.28537591]
[1735580095874,0.26201876,703.38,700.83,0.28537591]
[1735580096075,1.48647542,703.7,700.83,0.28537591]